bitfinex/quotes_ETHUSD_20260203
["timestamp","ask_amount","ask_price","bid_price","bid_amount"]
[1770086114510,12.07118082,2328.7,2327.8,0.01293605]
[1770086115022,12.07118082,2328.7,2327.4,0.901]
[1770086115223,12.07118082,2328.7,2327.5,0.01293605]
[1770086115799,12.07118082,2328.5,2327.6,1.0740677]
[1770086116195,12.07118082,2328.5,2327.0,0.59233542]
[1770086116400,12.07118082,2328.3,2327.5,1.07411355]
[1770086116802,12.07118082,2328.3,2327.4,1.07413714]
[1770086117008,12.07118082,2328.3,2327.3,1.07418377]
[1770086117296,12.07118082,2328.3,2327.2,4.30991838]
[1770086117297,12.07118082,2328.3,2327.5,1.07410723]
[1770086117635,13.14478727,2328.6,2327.6,0.01293605]
[1770086117926,15.6570734,2328.6,2327.8,1.07397542]
[1770086118127,15.6570734,2328.6,2327.6,1.61367769]
[1770086118331,12.07118082,2328.5,2327.6,1.61367769]
[1770086118729,12.07118082,2328.3,2327.4,1.07412386]
[1770086118929,12.07118082,2328.3,2327.6,1.07405096]
[1770086119114,12.07118082,2328.3,2327.5,1.07409246]
[1770086120216,1.07379091,2328.2,2327.3,1.07420616]
[1770086120528,1.07379091,2328.2,2327.3,1.08714221]
[1770086120726,1.07379091,2328.2,2327.4,0.53969029]
[1770086121232,13.14495461,2328.3,2327.4,0.55262634]
[1770086121421,1.07477587,2328.5,2327.7,0.01293605]
[1770086122131,1.07477587,2328.5,2327.8,1.07397542]
[1770086122316,1.07477587,2328.5,2327.8,1.6135568]
[1770086122834,13.93103307,2328.5,2327.8,0.53958138]
[1770086123035,13.93103307,2328.5,2327.7,1.08692295]
[1770086124002,0.0011,2328.5,2327.9,0.01293605]
[1770086124206,0.0011,2328.5,2328.0,1.07388316]
[1770086125535,12.8573572,2328.5,2327.7,1.07398433]
[1770086125714,12.8573572,2328.5,2327.6,1.07404284]
[1770086126037,14.14199292,2328.4,2327.6,1.07404284]
[1770086126414,1.07374479,2328.3,2327.6,1.07404284]
[1770086126935,12.8562572,2328.2,2327.5,0.901]
[1770086127108,12.8562572,2328.2,2327.5,1.97511048]
[1770086127308,14.80732542,2328.2,2327.5,0.901]
[1770086127720,14.80732542,2328.2,2327.5,1.97510576]
[1770086128036,12.8562572,2328.2,2327.5,1.97510576]
[1770086128538,13.93008687,2328.2,2327.5,1.97510576]
[1770086129739,12.8562572,2328.2,2327.5,1.97510576]
[1770086130113,5.19677453,2328.5,2327.7,0.01293605]
[1770086130114,13.93104926,2328.5,2327.7,0.01293605]
[1770086131110,13.93104926,2328.5,2327.7,1.07402156]
[1770086131314,13.93104926,2328.5,2327.8,0.53830439]
[1770086131617,0.0011,2328.5,2327.8,0.53830439]
[1770086132353,13.93101078,2328.5,2327.8,0.53830439]
[1770086132551,13.7599491,2328.4,2327.6,1.07403396]
[1770086132751,12.8562572,2328.4,2327.6,1.07403396]
[1770086133452,1.0747577,2328.5,2327.6,1.07403396]
[1770086133657,0.90406501,2328.4,2327.7,0.001]
[1770086133858,12.8562572,2328.4,2327.7,0.001]
[1770086134078,0.0011,2328.3,2327.7,0.62824241]
[1770086135935,0.0011,2328.3,2327.8,1.07397542]
[1770086137409,4.29388066,2328.9,2327.8,1.07397542]
[1770086137410,12.8562572,2329.4,2328.4,0.01293605]
[1770086137536,12.8562572,2329.2,2328.2,0.9]
[1770086137742,13.76275633,2329.1,2328.2,0.9]
[1770086137961,0.90649913,2329.0,2328.2,0.9]
[1770086138136,15.44014912,2329.4,2328.3,1.07374479]
[1770086138471,15.44014912,2329.4,2328.3,1.08668084]
[1770086138472,0.90648952,2329.3,2328.3,1.08668084]
[1770086138632,0.90648952,2329.2,2328.3,1.08668084]
[1770086138969,0.90648952,2329.1,2328.4,0.62945961]
[1770086139261,13.92953377,2329.4,2328.4,0.62945961]
[1770086139462,0.90638654,2329.3,2328.4,0.62945961]
[1770086139673,0.90638654,2329.2,2328.4,0.62945961]
[1770086139971,13.92953377,2329.4,2328.2,1.97377929]
[1770086139972,12.8562572,2329.0,2328.2,1.97377929]
[1770086140133,0.90638654,2328.9,2328.2,1.97377929]
[1770086140332,13.92971837,2329.0,2328.2,1.97377929]
[1770086140533,0.90635632,2328.9,2328.2,1.97377929]
[1770086140758,13.92971837,2329.0,2328.2,1.97377929]
[1770086140972,0.90634744,2328.9,2328.2,1.97377929]
[1770086141170,12.8562572,2329.0,2328.2,1.97377929]
[1770086141380,0.90641184,2328.9,2328.2,1.97377929]
[1770086141561,12.8562572,2329.0,2328.2,1.97377929]
[1770086141750,0.90641127,2328.9,2328.2,1.97377929]
[1770086141958,13.92969401,2329.0,2328.2,3.031524]
[1770086142257,0.90641197,2328.9,2328.2,3.031524]
[1770086142458,13.92969401,2329.0,2328.2,3.031524]
[1770086142682,0.90632626,2328.9,2328.2,3.031524]
[1770086142968,12.8562572,2328.7,2328.2,1.97378409]
[1770086143572,12.8562572,2328.7,2328.1,1.07381782]
[1770086143876,12.8562572,2328.7,2328.2,1.07375448]
[1770086144057,1.07343681,2329.0,2328.2,1.61065847]
[1770086144374,0.9066356,2328.9,2328.2,1.62359452]
[1770086144574,0.9066356,2328.8,2328.2,1.62359452]
[1770086144887,13.92968344,2329.0,2328.2,1.62359452]
[1770086145074,13.76302428,2328.9,2328.2,1.61065847]
[1770086145279,0.90676708,2328.8,2328.2,1.61065847]
[1770086145468,12.8562572,2328.9,2328.3,0.59059439]
[1770086145777,12.8562572,2329.2,2328.4,0.01293605]
[1770086145985,12.8562572,2329.2,2328.5,0.01293605]
[1770086146182,13.9295961,2329.2,2328.4,0.01293605]
[1770086146350,13.9295961,2329.2,2328.5,1.07365256]
[1770086147884,12.8562572,2329.0,2328.2,1.07378629]
[1770086148452,12.8562572,2328.8,2327.9,1.07392929]
[1770086148658,12.8562572,2328.8,2328.1,0.001]
[1770086148967,14.67861655,2328.8,2328.1,0.001]
[1770086150550,15.75215371,2328.8,2328.1,0.001]
[1770086154075,15.75213694,2328.8,2328.1,0.001]
[1770086154273,13.92977759,2328.8,2328.1,0.001]
[1770086154581,12.8562572,2328.8,2328.1,0.001]
[1770086155185,13.92977263,2328.8,2328.1,0.001]
[1770086155573,13.92977263,2328.8,2328.1,1.07483703]
[1770086156291,12.8562572,2328.8,2328.1,1.07483703]
[1770086156490,12.8562572,2328.8,2328.1,2.04397757]
[1770086156685,13.92977878,2328.8,2328.1,2.04397757]
[1770086157699,12.97092659,2328.7,2327.7,0.001]
[1770086157885,11.29809237,2328.8,2327.7,0.001]
[1770086157886,12.06325818,2328.5,2327.7,0.001]
[1770086158084,12.06325818,2328.3,2327.7,0.001]
[1770086158290,12.06325818,2328.3,2327.9,1.07392621]
[1770086158982,12.06325818,2328.3,2327.8,1.07394451]
[1770086159684,12.06325818,2328.3,2327.7,0.001]
[1770086159889,13.13700962,2328.3,2327.7,0.001]
[1770086160299,13.13700962,2328.3,2327.7,1.07502021]
[1770086161301,12.06325818,2328.3,2327.7,1.07501284]
[1770086161502,12.06325818,2328.3,2327.8,1.07397193]
[1770086161674,12.06325818,2328.3,2327.7,0.001]
[1770086161996,13.13700415,2328.3,2327.7,0.5395453]
[1770086162184,13.13700415,2328.3,2327.7,0.001]
[1770086162379,12.06325818,2328.1,2327.5,0.001]
[1770086162584,12.06325818,2327.9,2327.2,1.97522196]
[1770086162983,1.07374597,2328.3,2327.3,1.07418048]
[1770086162984,12.06325818,2328.2,2327.3,1.07418048]
[1770086163185,12.06325818,2328.0,2327.6,0.001]
[1770086164106,13.13715787,2328.0,2327.6,0.001]
[1770086165390,13.13715787,2328.0,2327.2,1.97521544]
[1770086165591,13.13714561,2328.0,2327.2,1.97521544]
[1770086166279,12.06325818,2328.0,2327.2,1.98815149]
[1770086166481,13.88162948,2328.0,2327.2,1.07524643]
[1770086167696,12.06325818,2327.8,2327.2,0.001]
[1770086167899,12.06325818,2327.8,2327.2,1.07524795]
[1770086168294,13.13723672,2327.8,2327.2,0.001]
[1770086172509,12.06325818,2327.6,2327.2,0.001]
[1770086172807,12.06325818,2327.6,2326.9,3.62075585]
[1770086172808,13.24897536,2327.6,2326.9,2.54636907]
[1770086173112,12.06325818,2327.4,2326.9,2.54636907]
[1770086173409,1.18571718,2327.6,2326.9,3.62075341]
[1770086173705,12.06325818,2327.6,2326.9,3.62075341]
[1770086173906,12.06325818,2327.6,2326.9,2.54636907]
[1770086174115,1.97497854,2327.8,2326.7,0.001]
[1770086174116,12.06325818,2327.4,2326.7,0.001]
[1770086174283,12.06325818,2327.2,2326.7,0.001]
[1770086174481,13.80668708,2327.2,2326.7,0.001]
[1770086174678,13.80668708,2327.2,2326.5,0.001]
[1770086175286,13.80668708,2327.2,2326.5,1.07555484]
[1770086175488,13.80668708,2327.2,2326.5,0.001]
[1770086176312,12.06325818,2327.0,2326.5,0.001]
[1770086176486,13.37701385,2326.9,2326.5,0.001]
[1770086176691,1.31375567,2326.9,2326.5,0.001]
[1770086176910,1.07429848,2327.1,2326.5,0.001]
[1770086177102,13.13755666,2327.1,2326.5,0.001]
[1770086180695,13.13755666,2327.1,2326.3,0.001]
[1770086185316,12.5055858,2326.9,2326.0,0.001]
[1770086185492,10.35092148,2327.0,2326.0,0.001]
[1770086185493,12.5055858,2326.7,2326.0,0.001]
[1770086187216,12.5055858,2326.4,2325.7,0.001]
[1770086187442,12.5055858,2326.2,2325.7,0.001]
[1770086189218,1.07476032,2326.1,2325.7,0.001]
[1770086189449,12.5055858,2325.7,2325.2,0.001]
[1770086189594,9.45185637,2325.8,2324.4,1.07550792]
[1770086189595,12.5055858,2325.5,2324.4,1.07550792]
[1770086189793,12.5055858,2325.5,2324.5,1.07549132]
[1770086190218,12.5055858,2325.5,2324.6,1.07545114]
[1770086190420,13.84624438,2325.4,2325.0,0.001]
[1770086190598,13.84624438,2325.4,2324.6,1.07545119]
[1770086190801,13.84624438,2325.4,2324.5,1.07547758]
[1770086191200,13.58071589,2325.3,2324.1,4.30273194]
[1770086191401,13.58071589,2325.3,2324.1,4.31566799]
[1770086191602,15.5028999,2325.3,2324.2,0.63052892]
[1770086192120,12.5055858,2325.2,2324.2,0.63052892]
[1770086192302,12.5055858,2325.0,2324.0,1.075726]
[1770086193220,12.5055858,2324.8,2323.7,4.30341238]
[1770086193731,12.5055858,2324.8,2323.7,1.07587037]
[1770086195243,12.5055858,2324.6,2323.2,13.4724188]
[1770086197232,13.580935,2324.9,2323.6,12.39631688]
[1770086197532,0.43142178,2324.8,2323.6,12.39631688]
[1770086197743,12.5055858,2324.7,2323.6,12.39631688]
[1770086197911,12.5055858,2324.7,2323.5,1.07596298]
[1770086198107,12.5055858,2324.2,2323.1,0.901]
[1770086198324,2.19703782,2324.1,2323.3,1.07603296]
[1770086198527,2.19703782,2324.1,2323.3,1.07602278]
[1770086198937,14.70262362,2324.1,2323.3,1.07602278]
[1770086199134,14.70262362,2324.1,2323.4,1.07600889]
[1770086199333,12.5055858,2323.9,2322.7,0.901]
[1770086199714,12.5055858,2323.9,2322.7,13.29731688]
[1770086200019,12.5055858,2324.2,2322.9,12.39631688]
[1770086200233,13.5812298,2324.2,2322.9,12.39631688]
[1770086200411,15.45968321,2324.2,2323.0,12.39631688]
[1770086200734,15.45968321,2324.2,2322.7,13.29731688]
[1770086201514,15.45968321,2324.2,2322.8,13.47260411]
[1770086202333,12.5055858,2324.0,2322.8,1.07628723]
[1770086202663,12.5055858,2323.8,2322.9,0.001]
[1770086203162,12.5055858,2323.6,2322.9,0.001]
[1770086203318,12.5055858,2323.4,2322.9,0.001]
[1770086203515,21.95744217,2323.0,2321.8,4.30696227]
[1770086203737,12.5055858,2323.0,2321.8,4.30696227]
[1770086203920,13.86505281,2322.9,2321.9,0.65864175]
[1770086204733,13.58162674,2323.4,2321.9,13.05495863]
[1770086205651,13.58162674,2323.4,2322.0,1.07665805]
[1770086205816,13.58160576,2323.4,2322.0,13.47297493]
[1770086206324,12.5055858,2323.4,2322.0,13.47297493]
[1770086206644,15.41287482,2323.4,2322.1,13.16624871]
[1770086208033,12.5055858,2323.4,2322.2,13.48581825]
[1770086208236,13.58159635,2323.4,2322.3,0.902]
[1770086208420,13.58159562,2323.4,2322.3,0.902]
[1770086208957,12.5055858,2323.4,2322.3,0.902]
[1770086209143,12.5055858,2323.4,2322.4,0.003]
[1770086209352,13.58160203,2323.4,2322.4,0.66164175]
[1770086209647,13.58160203,2323.4,2322.4,0.003]
[1770086209985,12.5055858,2323.4,2322.4,1.07947261]
[1770086210121,13.7136323,2323.6,2322.4,1.07947261]
[1770086210515,12.63768169,2323.6,2322.4,1.07947261]
[1770086210715,12.63768169,2323.6,2322.4,12.85670694]
[1770086210716,0.60145875,2323.6,2322.4,12.85670694]
[1770086211024,0.60145875,2323.6,2322.5,11.77723433]
[1770086211852,13.11174298,2324.5,2323.1,11.77723433]
[1770086212028,13.11174298,2324.5,2323.3,1.07605561]
[1770086215350,13.11174298,2324.5,2323.5,0.001]
[1770086216325,13.12467903,2324.5,2323.5,0.001]
[1770086216664,12.03622294,2324.3,2323.5,0.001]
[1770086218255,13.11181891,2324.3,2323.5,0.001]
[1770086218628,13.11181969,2324.3,2323.5,0.001]
[1770086220240,12.03622294,2324.1,2323.5,0.001]
[1770086220545,12.03622294,2323.9,2323.5,0.001]
[1770086220725,13.32971102,2323.9,2322.6,1.0763435]
[1770086220927,12.03622294,2323.7,2322.6,1.07636224]
[1770086221148,12.03622294,2323.5,2322.6,1.07636224]
[1770086221344,14.34141791,2323.4,2322.6,1.07636224]
[1770086221545,13.44295896,2323.4,2322.7,1.07633126]
[1770086221830,13.44295896,2323.4,2322.8,4.30513661]
[1770086222156,1.29348808,2323.9,2322.6,12.86655029]
[1770086222329,0.89941071,2323.8,2322.8,11.77723433]
[1770086222524,13.11191011,2324.1,2322.9,0.91493605]
[1770086222841,12.935722,2324.0,2322.9,0.902]
[1770086223160,12.935722,2323.9,2322.9,0.902]
[1770086223331,2.20836545,2324.1,2322.9,0.902]
[1770086223332,12.03622294,2323.7,2322.9,0.902]
[1770086223735,13.16890122,2324.0,2322.9,0.902]
[1770086223936,0.89873596,2323.9,2322.9,0.902]
[1770086224262,2.20834498,2324.2,2323.0,1.08913062]
[1770086224559,12.93542289,2324.1,2323.1,0.62959089]
[1770086224759,12.03622294,2323.9,2323.1,0.62959089]
[1770086226261,12.03622294,2323.9,2323.1,1.7057046]
[1770086226262,1.97551661,2323.8,2323.1,1.7057046]
[1770086226448,1.07584095,2323.8,2323.1,1.7057046]
[1770086226649,13.11203183,2323.9,2323.1,1.7057046]
[1770086227175,12.93564179,2323.8,2323.1,1.7057046]
[1770086227330,12.03622294,2323.8,2323.1,1.7057046]
[1770086228664,12.03622294,2323.8,2323.3,0.001]
[1770086229745,14.24462524,2324.1,2323.3,0.001]
[1770086229944,12.9360781,2324.0,2323.3,0.001]
[1770086230145,0.89985516,2323.9,2323.3,0.001]
[1770086230570,0.89985516,2323.9,2323.3,1.07705561]
[1770086230775,17.85038144,2324.3,2323.3,1.07705561]
[1770086230776,0.0011,2324.3,2323.5,0.01293605]
[1770086230945,0.0011,2324.3,2323.6,0.01293605]
[1770086231145,0.0011,2324.3,2323.5,0.01293605]
[1770086232668,0.0011,2324.3,2323.6,13.76808706]
[1770086232974,0.0011,2324.3,2323.6,1.97791668]
[1770086233146,0.0011,2324.3,2323.7,0.62815834]
[1770086234656,0.0011,2324.3,2323.8,1.07582408]
[1770086237879,12.03732294,2324.3,2323.8,1.07582408]
[1770086238048,12.03732294,2324.3,2323.6,1.97790437]
[1770086238248,12.03732294,2324.3,2323.4,1.07599147]
[1770086238450,12.03622294,2324.1,2323.7,1.07585521]
[1770086238975,12.03622294,2324.1,2323.5,1.0759448]
[1770086239146,12.03622294,2324.1,2323.5,1.07596294]
[1770086239349,12.03622294,2324.1,2323.4,1.07596298]
[1770086239777,12.03622294,2324.1,2323.5,4.30384946]
[1770086239974,0.0011,2324.3,2323.5,5.27235]
[1770086240175,0.0011,2324.3,2323.8,0.01293605]
[1770086240674,0.0011,2324.3,2323.6,0.01293605]
[1770086240853,0.0011,2324.3,2323.5,5.27235]
[1770086241453,0.0011,2324.5,2323.8,0.01293605]
[1770086241655,0.0011,2324.5,2323.8,13.51231712]
[1770086243678,0.0011,2324.5,2323.9,1.07577778]
[1770086243679,0.0011,2324.3,2323.9,1.07577778]
[1770086247796,0.0011,2324.5,2324.0,0.01293605]
[1770086248286,0.0011,2324.5,2323.9,1.08871383]
[1770086248287,0.0011,2324.5,2323.9,1.07577778]
[1770086251408,12.6126548,2324.5,2323.9,1.07577778]
[1770086251712,13.87392028,2324.5,2323.9,1.07577778]
[1770086252679,14.58858046,2324.4,2323.6,1.07591668]
[1770086252921,13.68710117,2324.4,2323.6,1.07591668]
[1770086254192,0.90220015,2324.3,2323.6,1.07591668]
[1770086254382,13.68710117,2324.4,2323.6,1.07591668]
[1770086254713,15.43893147,2324.3,2323.6,1.07591668]
[1770086254891,1.97785802,2324.2,2323.5,4.30368682]
[1770086255090,1.0756456,2324.2,2323.5,4.30368682]
[1770086255279,15.61234753,2324.3,2323.5,4.30368682]
[1770086255480,13.51408813,2324.2,2323.5,4.30368682]
[1770086255693,1.65148809,2324.1,2323.5,4.30368682]
[1770086256380,3.0007661,2324.3,2323.5,4.30368682]
[1770086256582,12.6115548,2324.1,2323.5,1.07596298]
[1770086257010,12.6115548,2324.1,2323.8,0.001]
[1770086257719,13.68724032,2324.1,2323.8,0.001]
[1770086258029,13.68725058,2324.1,2323.8,0.001]
[1770086258322,14.41063697,2324.1,2323.8,0.001]
[1770086258527,1.07669873,2324.3,2323.8,0.001]
[1770086258726,0.90375301,2324.2,2323.8,0.001]
[1770086258913,0.90375301,2324.1,2323.8,0.001]
[1770086259104,13.68720957,2324.2,2323.8,0.001]
[1770086259303,0.90404209,2324.1,2323.8,0.001]
[1770086259601,15.59894341,2324.2,2323.8,0.001]
[1770086259803,0.90414065,2324.1,2323.8,0.001]
[1770086260003,15.59894341,2324.2,2323.8,0.001]
[1770086260323,13.51570318,2324.1,2323.8,0.001]
[1770086260622,2.55445756,2324.0,2323.8,0.001]
[1770086260822,1.65030918,2324.0,2323.8,0.001]
[1770086261349,1.91174921,2324.2,2323.8,0.001]
[1770086261621,0.90465888,2324.1,2323.8,0.001]
[1770086261820,1.91174921,2324.2,2323.8,0.001]
[1770086262120,0.90435282,2324.1,2323.8,0.001]
[1770086262303,2.98739113,2324.2,2323.8,0.001]
[1770086262507,1.74603443,2324.1,2323.8,0.001]
[1770086262733,0.84178836,2324.1,2323.8,0.001]
[1770086262929,2.98739141,2324.2,2323.8,0.001]
[1770086263137,0.90414886,2324.1,2323.8,0.001]
[1770086263444,15.59894621,2324.2,2323.8,0.001]
[1770086263618,0.90409318,2324.1,2323.8,0.001]
[1770086263817,15.59894621,2324.2,2323.8,0.001]
[1770086264048,0.90409347,2324.1,2323.8,0.001]
[1770086264221,0.90409347,2324.0,2323.8,0.001]
[1770086264421,15.59894621,2324.2,2323.8,0.001]
[1770086264623,3.00696319,2324.1,2323.8,0.001]
[1770086264943,0.90402145,2324.0,2323.8,0.001]
[1770086265245,2.10294174,2324.1,2323.8,0.001]
[1770086265629,13.6871985,2324.2,2323.8,0.001]
[1770086265929,0.90381498,2324.1,2323.8,0.001]
[1770086266129,13.6871985,2324.2,2323.8,0.001]
[1770086266321,0.90376048,2324.1,2323.8,0.001]
[1770086266519,0.90376075,2324.0,2323.8,0.001]
[1770086266830,13.6871985,2324.2,2323.8,0.001]
[1770086267030,0.90376098,2324.1,2323.8,0.001]
[1770086267230,15.59896788,2324.2,2323.8,0.001]
[1770086267441,0.90371716,2324.1,2323.8,0.001]
[1770086267638,15.59896788,2324.2,2323.8,0.001]
[1770086267948,0.90361774,2324.1,2323.8,0.001]
[1770086268248,15.59896788,2324.2,2323.8,0.001]
[1770086268447,0.90344971,2324.1,2323.8,0.001]
[1770086268647,15.59896788,2324.2,2323.8,0.001]
[1770086268821,0.90343681,2324.1,2323.8,0.001]
[1770086269021,15.59896788,2324.2,2323.8,0.001]
[1770086269221,0.90343888,2324.1,2323.8,0.001]
[1770086269414,14.80484501,2324.1,2323.5,0.001]
[1770086269620,13.51495739,2324.0,2323.5,0.001]
[1770086269821,0.90337445,2323.9,2323.5,0.001]
[1770086270116,12.6115548,2324.0,2323.5,0.001]
[1770086270622,0.90325365,2323.9,2323.5,0.001]
[1770086270821,12.6115548,2324.0,2323.5,0.001]
[1770086271135,0.90321817,2323.9,2323.5,0.001]
[1770086271335,14.31230304,2324.0,2323.8,0.001]
[1770086271549,0.90310598,2323.9,2323.8,0.001]
[1770086272039,0.0011,2324.1,2323.8,0.001]
[1770086273227,0.0011,2324.3,2323.8,0.001]
[1770086273454,0.90334428,2324.2,2323.8,0.001]
[1770086273662,0.0011,2324.3,2323.8,0.001]
[1770086273860,0.90330379,2324.2,2323.8,0.001]
[1770086274035,0.0011,2324.3,2323.8,0.001]
[1770086274236,0.0011,2324.3,2323.8,0.54033091]
[1770086275457,0.0011,2324.5,2323.8,12.57466678]
[1770086275643,0.0011,2324.5,2323.9,13.11011365]
[1770086276034,0.0011,2324.5,2323.9,1.07577778]
[1770086278963,12.86729969,2324.5,2323.9,1.07577778]
[1770086279260,13.76946008,2324.4,2323.9,1.07577778]
[1770086279460,12.86619969,2324.4,2323.9,1.07577778]
[1770086279664,12.86619969,2324.4,2323.8,1.07678935]
[1770086280361,0.0011,2324.5,2323.8,1.07678935]
[1770086280663,0.90305396,2324.4,2323.8,1.07678935]
[1770086280845,0.0011,2324.5,2323.8,1.07678935]
[1770086281043,0.0011,2324.5,2323.9,12.03433587]
[1770086281447,0.31538442,2324.8,2323.9,12.03433587]
[1770086282053,14.25694618,2324.8,2323.8,1.0897254]
[1770086282237,15.38393988,2324.8,2323.8,1.07678935]
[1770086282440,13.94169979,2324.5,2323.8,1.07678935]
[1770086282684,13.94169979,2324.5,2323.5,1.07694436]
[1770086282855,15.68806965,2324.5,2323.5,1.07694436]
[1770086283044,15.68806965,2324.5,2322.4,12.03733587]
[1770086283045,12.86619969,2323.9,2322.4,12.03733587]
[1770086283244,13.99319339,2323.7,2322.7,1.07633309]
[1770086283457,13.99319339,2323.7,2322.7,1.07630979]
[1770086283774,13.99319339,2323.5,2322.4,1.07945358]
[1770086284083,12.86619969,2323.2,2322.4,0.003]
[1770086284251,12.86619969,2323.2,2322.2,1.80185925]
[1770086284252,12.86619969,2323.0,2322.2,0.89985925]
[1770086284458,13.94253326,2322.7,2322.2,0.89985925]
[1770086284962,13.94253326,2322.7,2322.6,0.001]
[1770086285167,13.94253326,2322.7,2322.2,0.89985925]
[1770086285369,13.94253326,2322.7,2322.4,0.001]
[1770086286700,13.94253326,2322.7,2322.2,0.89985925]
[1770086286848,13.94253326,2322.7,2321.5,0.01293605]
[1770086286849,15.90500201,2322.7,2321.5,0.01293605]
[1770086287048,15.90500201,2322.7,2321.4,4.31172659]
[1770086287049,12.86619969,2322.5,2321.4,4.31172659]
[1770086287282,12.86619969,2322.5,2321.6,1.07681249]
[1770086287666,12.86619969,2322.5,2321.4,0.004]
[1770086288358,12.86619969,2322.5,2321.7,1.07677061]
[1770086288586,1.07647261,2322.4,2321.7,0.54099777]
[1770086288768,13.9426723,2322.4,2321.7,0.54099777]
[1770086288973,1.07645291,2322.5,2321.7,1.61779291]
[1770086289289,1.07631441,2322.8,2321.9,0.01293605]
[1770086289586,1.07631441,2322.8,2321.7,0.54099777]
[1770086289587,13.9425141,2322.8,2321.7,0.54099777]
[1770086289787,12.86619969,2322.6,2321.7,1.61777644]
[1770086289962,12.86619969,2322.6,2321.5,1.07686483]
[1770086290367,12.86619969,2322.6,2321.5,1.07688639]
[1770086290760,12.86619969,2322.4,2321.4,0.004]
[1770086292665,1.07651896,2322.3,2321.4,1.08093633]
[1770086293913,15.9050279,2322.7,2321.5,0.01293605]
[1770086294078,12.86619969,2322.5,2321.6,0.01293605]
[1770086294274,12.86619969,2322.5,2321.5,0.54274898]
[1770086294877,12.86619969,2322.3,2321.5,1.07687042]
[1770086295493,12.86619969,2322.3,2321.5,1.08980647]
[1770086295688,12.86619969,2322.3,2321.5,1.07687042]
[1770086296010,15.53311907,2322.6,2321.5,1.08980647]
[1770086296207,15.53311907,2322.6,2321.6,0.01293605]
[1770086296504,14.85005027,2322.5,2321.6,0.55567803]
[1770086296804,14.85005027,2322.5,2321.6,0.54274198]
[1770086297007,12.86619969,2322.3,2321.7,1.07679717]
[1770086297902,12.86729969,2322.3,2321.7,1.07679717]
[1770086298294,12.86729969,2322.3,2321.6,1.07784075]
[1770086298496,14.46016976,2322.3,2321.6,1.07784075]
[1770086298713,12.86729969,2322.3,2321.6,1.07784075]
[1770086298952,0.0011,2322.3,2321.8,1.07675079]
[1770086300094,0.0011,2322.5,2321.8,1.08968684]
[1770086300815,0.0011,2322.5,2321.8,1.07675079]
[1770086300992,0.0011,2322.5,2321.7,4.30701241]
[1770086301198,0.0011,2322.5,2321.8,0.64171701]
[1770086301399,0.0011,2322.5,2321.8,0.62878096]
[1770086301907,12.71155188,2322.5,2321.8,0.62878096]
[1770086303017,12.71155188,2322.5,2321.9,1.07670442]
[1770086303192,0.0011,2322.5,2321.9,1.07670442]
[1770086303392,0.0011,2322.5,2322.0,0.60123031]
[1770086304295,13.7879835,2322.5,2321.8,1.07671476]
[1770086305106,0.0011,2322.5,2321.7,4.30706048]
[1770086305300,1.07753104,2322.5,2321.7,4.30706048]
[1770086305507,0.0011,2322.5,2321.7,4.30706048]
[1770086305708,1.07753534,2322.5,2321.8,0.63007937]
[1770086306220,0.0011,2322.5,2321.8,0.63007937]
[1770086307316,0.0011,2322.5,2321.9,1.07670442]
[1770086307796,12.71155188,2322.5,2321.8,1.70680203]
[1770086308118,12.71155188,2322.5,2321.8,1.07672266]
[1770086309517,0.0011,2322.5,2321.7,4.30715926]
[1770086310093,13.78797886,2322.5,2321.7,4.30715926]
[1770086310293,13.78797886,2322.5,2321.6,1.98081812]
[1770086310490,12.71045188,2322.3,2321.6,1.98084112]
[1770086311804,13.78699305,2322.3,2321.9,0.001]
[1770086312014,12.71155188,2322.3,2321.9,0.001]
[1770086312426,13.78807805,2322.3,2321.9,0.001]
[1770086313022,0.0011,2322.3,2321.9,0.001]
[1770086314030,12.71155188,2322.3,2321.9,0.001]
[1770086314212,14.88415608,2322.2,2321.6,0.001]
[1770086314419,12.71045188,2321.6,2320.5,1.07733283]
[1770086314615,12.71045188,2321.4,2320.3,4.30977707]
[1770086314793,0.90254901,2321.3,2320.6,0.01293605]
[1770086314997,14.74109016,2321.7,2320.6,0.01293605]
[1770086315231,13.61182544,2321.6,2320.6,0.01293605]
[1770086315428,0.90137356,2321.5,2320.6,0.01293605]
[1770086315825,0.90137356,2321.5,2320.7,1.07726117]
[1770086316025,0.90137356,2321.5,2320.9,0.01293605]
[1770086316224,15.81771185,2322.1,2321.0,0.01293605]
[1770086316430,14.69007357,2322.1,2321.0,0.01293605]
[1770086316732,13.61345188,2322.1,2321.0,12.54071178]
[1770086316936,14.69007865,2322.1,2320.9,0.01293605]
[1770086317130,12.71045188,2321.9,2320.9,0.90158544]
[1770086317640,2.13951369,2322.0,2321.0,0.01293605]
[1770086317803,19.41552063,2322.2,2321.0,12.54071178]
[1770086317804,16.18584613,2322.2,2321.0,12.54071178]
[1770086318129,15.10924535,2322.2,2321.1,13.6177873]
[1770086318316,13.78703147,2322.2,2321.2,0.01293605]
[1770086318521,12.71045188,2322.2,2321.2,0.01293605]
[1770086319308,13.78702341,2322.2,2321.1,1.09001157]
[1770086319723,0.0011,2322.3,2321.3,0.01293605]
[1770086319925,1.07762106,2322.3,2321.3,0.55286024]
[1770086320121,1.07762106,2322.3,2321.4,1.07693633]
[1770086320334,0.0011,2322.3,2321.4,1.07693633]
[1770086320523,12.71155188,2322.3,2321.4,1.07693633]
[1770086321508,0.0011,2322.3,2321.4,1.08987238]
[1770086321713,0.0011,2322.3,2321.6,0.01293605]
[1770086322135,0.0011,2322.3,2321.7,1.07679717]
[1770086323906,4.30523932,2322.8,2321.7,1.07679717]
[1770086323907,1.12763828,2322.9,2322.3,0.01293605]
[1770086324132,14.89658174,2323.5,2322.7,1.07633357]
[1770086324637,13.82061868,2323.5,2322.7,1.07633357]
[1770086325020,14.89658396,2323.5,2322.7,1.07633357]
[1770086325539,1.1101668,2323.5,2322.8,0.01293605]
[1770086326141,1.07605561,2323.3,2322.4,0.903]
[1770086326321,1.07605561,2323.3,2322.5,1.07640165]
[1770086326322,13.78760749,2323.3,2322.5,1.07640165]
[1770086326525,15.70779905,2323.3,2322.5,1.07640165]
[1770086326916,14.63174344,2323.3,2322.5,1.07640165]
[1770086327112,12.71155188,2323.3,2322.5,1.0893377]
[1770086327444,0.0011,2323.3,2322.5,1.0893377]
[1770086327941,12.71155188,2323.3,2322.5,1.0893377]
[1770086328131,12.71155188,2323.3,2322.5,1.07640165]
[1770086328438,13.7865538,2323.2,2322.5,1.07640165]
[1770086328639,15.59573121,2323.2,2322.4,1.97944736]
[1770086328840,15.59573121,2323.2,2322.4,0.903]